Cogmind - Beta 12 X4 @@@ ROGUE MODE // 2022.12.10 @ 19:11:51 Player: Plexion Result: Destroyed by G-47 Trooper with Particle Gun Performance ------------- Evolutions (0) 0 Regions Visited (2) 400 Robots Destroyed (15) 75 Value Destroyed (423) 423 Prototype IDs (0) 0 Alien Tech Used (0) 0 Bonus (0) 0 TOTAL SCORE: 898 Bonus ------- None Cogmind --------- Core Integrity 0/250 Matter 257/300 Energy 80/100 System Corruption 0% Temperature Warm (192) Movement Treading (240) Ox1 Location -10/Mines Parts ------- > --- POWER (1) -------- (None) > --- PROPULSION (2) --- Light Treads Light Treads > --- UTILITY (2) ------ High-capacity Storage Unit > --- WEAPON (2) ------- Medium Laser > --- INVENTORY (20) --- Improved Ion Engine Light Treads Light Treads Light Treads Light Treads Light Treads Light Treads Light Treads Small Storage Unit Grenade Launcher Grenade Launcher Rocket Launcher Peak State ------------ > --- POWER ------------ Improved Ion Engine > --- PROPULSION ------- Light Treads Light Treads > --- UTILITY ---------- High-capacity Storage Unit > --- WEAPON ----------- EM Pulse Gun Small Laser > --- INVENTORY -------- Improved Ion Engine Light Treads Light Treads Light Treads Light Treads Small Storage Unit Medium Laser Grenade Launcher Grenade Launcher [Rating: 8] Favorites ----------- Power Improved Ion Engine Engine Improved Ion Engine Propulsion Light Treads Treads Light Treads Utility High-capacity Storage Unit Storage High-capacity Storage Unit Weapon Small Laser Energy Gun Small Laser Ballistic Cannon Light Cannon Launcher Grenade Launcher Build | -11 -10 -10 ------- Run | Scr Mat Min Slots Evolved . | . . . Power . | . . . Propulsion . | . . . Utility . | . . . Weapon . | . . . Parts Attached 18 | 6 7 5 Power 2 | 1 1 . Engine 2 | 1 1 . Core . | . . . Reactor . | . . . Propulsion 6 | 2 2 2 Treads 6 | 2 2 2 Leg . | . . . Wheel . | . . . Hover . | . . . Flight . | . . . Utility 2 | 1 1 . Device . | . . . Storage 2 | 1 1 . Processor . | . . . Hackware . | . . . Protection . | . . . Artifact . | . . . Weapon 8 | 2 3 3 Energy Gun 6 | 2 2 2 Energy Cannon . | . . . Ballistic Gun . | . . . Ballistic Cannon 1 | . 1 . Launcher 1 | . . 1 Special Weapon . | . . . Impact Weapon . | . . . Slashing Weapon . | . . . Piercing Weapon . | . . . Special Melee Weapon . | . . . Unidentified Prototypes . | . . . Parts Lost 6 | . 1 5 Power 1 | . . 1 Propulsion 2 | . . 2 Utility . | . . . Weapon 3 | . 1 2 Highest Loss Streak 5 | . 1 5 To Critical Strikes . | . . . Average Slot Usage (%) 84 | . 84 82 Engine 13 | . 14 12 Treads 27 | . 28 27 Storage 14 | . 14 14 Energy Gun 25 | . 27 14 Ballistic Cannon 2 | . . 12 Naked Turns . | . . . Heaviest Build 53 | 11 51 53 Greatest Support 40 | 40 40 40 Greatest Overweight (x) 2 | . 1 2 Average Overweight (x) . | . . 1 Largest Inventory Capacity 20 | 8 20 20 Average Capacity 17 | 7 17 20 Most Carried 15 | 2 14 15 Average Carried 8 | 1 7 14 Final Capacity 20 | 8 20 20 Final Carried 14 | 2 14 12 Class Distribution -------------------- 100% | Mutant Dominant Class ---------------- Mutant | -10/Materials Mutant | -10/Mines Resources | -11 -10 -10 ----------- Run | Scr Mat Min Matter Collected 333 | 183 132 18 Remotely . | . . . Salvage Created 569 | . 551 18 Parts 38 | . 34 4 Haulers Intercepted 1 | . 1 . Recyclers Shooed 1 | . 1 . Parts Field Recycled . | . . . Retrieved Matter . | . . . Parts Self-Destructed . | . . . Prevented . | . . . Kills | -11 -10 -10 ------- Run | Scr Mat Min Combat Hostiles Destroyed 13 | . 9 4 Guns 10 | . 9 1 AOE 3 | . . 3 Classes Destroyed 5 | . 3 2 Hauler 1 | . 1 . Recycler 1 | . 1 . Swarmer 3 | . . 3 Grunt 9 | . 9 . Demolisher 1 | . . 1 Best Kill Streak 4 | . 4 3 Combat Bots Only 4 | . 4 3 Max Kills in Single Turn 3 | . 1 3 Gunslinging . | . . . Exploded 3 | . . 3 Melee . | . . . Uniques/NPCs Destroyed . | . . . Combat | -11 -10 -10 -------- Run | Scr Mat Min Damage Taken 1254 | . 451 803 Core 260 | . 100 160 Absorbed by Shields . | . . . Core Remaining (%) 100 | 100 . . Volleys Fired 63 | . 48 15 Largest 2 | . 2 2 Hottest 90 | . 90 90 Shots Fired 117 | . 90 27 Gun 112 | . 90 22 Cannon 4 | . . 4 Launcher 1 | . . 1 Special . | . . . Kinetic 4 | . . 4 Thermal 79 | . 57 22 Explosive 1 | . . 1 Electromagnetic 33 | . 33 . Robot Hit Streak 10 | . 10 7 Robot Miss Streak 3 | . 3 2 Penetration Max . | . . . Secondary Targets 1 | . 1 . Max Gunslinging Chain 1 | . 1 . Shots Hit Robots 81 | . 62 19 Core Hits 29 | . 23 6 Critical Kills . | . . . Critical Parts Destroyed . | . . . Critical Strikes 3 | . 1 2 Burn 3 | . 1 2 Melee Attacks . | . . . Impact . | . . . Slashing . | . . . Piercing . | . . . Sneak Attacks . | . . . Combat Hostiles . | . . . Follow-up Attacks . | . . . Damage Inflicted 1200 | . 812 388 Guns 938 | . 747 191 Cannons 53 | . . 53 Explosions 209 | . 65 144 Melee . | . . . Ramming . | . . . Kinetic 53 | . . 53 Thermal 671 | . 480 191 Explosive 144 | . . 144 Electromagnetic 332 | . 332 . Impact . | . . . Slashing . | . . . Piercing . | . . . Highest Corruption . | . . . Average Corruption . | . . . Corruption Purged . | . . . Corruption Blocked . | . . . Overload Shots . | . . . Overflow Damage 24 | . 14 10 Projectiles 7 | . . 7 Explosions 17 | . 14 3 Melee . | . . . Knockbacks 2 | . . 2 Impact . | . . . Kinetic 2 | . . 2 Secondary . | . . . Self-Inflicted Damage 64 | . 33 31 Shots 2 | . 1 1 Rammed . | . . . Targets Rammed . | . . . Kicked . | . . . Crushed . | . . . Highest Temperature 304 | . 288 304 Average Temperature 100 | . 82 169 Received Heat Transfer 411 | . 231 180 Effects 2 | . 2 . Energy Bleed 1 | . 1 . Interference 1 | . 1 . Siege Activations . | . . . Robots Corrupted . | . . . Combat Hostiles . | . . . Parts Fried . | . . . Impact Corruptions . | . . . Robots Melted . | . . . Combat Hostiles . | . . . Parts Melted 2 | . 2 . Heat Transferred 1887 | . 1219 668 Parts Sabotaged . | . . . Parts Stolen . | . . . Parts Stripped . | . . . Power Chain Reactions 2 | . 2 . Missiles Intercepted . | . . . Alert | -11 -10 -10 ------- Run | Scr Mat Min Peak Influence 172 | . 172 125 Initial 15 | . . 15 Average 66 | . 60 113 Maximum Alert Level . | . . . Low Security (%) 100 | 100 100 100 Level 1 . | . . . Level 2 . | . . . Level 3 . | . . . Level 4 . | . . . Level 5 . | . . . High Security . | . . . Max Security . | . . . Squads Dispatched 2 | . 2 . Investigation 1 | . 1 . Extermination . | . . . Reinforcement 1 | . 1 . Assault . | . . . Garrison . | . . . Intercept . | . . . Searches Triggered . | . . . Construction Impeded . | . . . Haulers Reinforced . | . . . Active Scanning Responses . | . . . Cargo Convoy Interrupts . | . . . Stealth | -11 -10 -10 --------- Run | Scr Mat Min Distress Signals . | . . . Communications Jammed . | . . . Distress Signals . | . . . Times Spotted 34 | . 23 11 Peak Tracking Total 6 | . 4 6 Tactical Retreats 1 | . . 1 Traps | -11 -10 -10 ------- Run | Scr Mat Min Traps Triggered . | . . . Indirectly . | . . . Trap Hack Attempts . | . . . Triggered . | . . . Disarmed . | . . . Reprogrammed . | . . . Reused . | . . . Traps Extracted . | . . . Installed . | . . . Triggered . | . . . Machines | -11 -10 -10 ---------- Run | Scr Mat Min Machines Disabled . | . . . Max in Single Turn . | . . . Machines Sabotaged . | . . . Overloaded Fab Kills . | . . . Hacking | -11 -10 -10 --------- Run | Scr Mat Min Machines Accessed 6 | . 6 . Terminals 6 | . 6 . Fabricators . | . . . Repair Stations . | . . . Recycling Units . | . . . Scanalyzers . | . . . Garrison Access . | . . . Total Hacks 18 | . 18 . Successful 8 | . 8 . Failed 10 | . 10 . Catastrophic 1 | . 1 . Database Lockouts . | . . . Manual 18 | . 18 . Terminals 18 | . 18 . Fabricators . | . . . Repair Stations . | . . . Recycling Units . | . . . Scanalyzers . | . . . Garrison Access . | . . . Terminal Hacks 6 | . 6 . Robot Analysis 5 | . 5 . Hauler Manifests 1 | . 1 . Fabricator Hacks . | . . . Repair Station Hacks . | . . . Recycling Unit Hacks . | . . . Scanalyzer . | . . . Garrison Access Hacks . | . . . Unauthorized Hacks 2 | . 2 . Terminals 2 | . 2 . Botnet 2 | . 2 . Fabricators . | . . . Repair Stations . | . . . Recycling Units . | . . . Scanalyzers . | . . . Garrison Access . | . . . Data Cores Recovered . | . . . Used . | . . . Hacking Detections 6 | . 6 . Full Trace Events . | . . . Feedback Events . | . . . Feedback Blocked . | . . . Robot Schematics Acquired . | . . . Robots Built . | . . . Authchips . | . . . Time . | . . . Total Robot Build Rating . | . . . Part Schematics Acquired . | . . . Parts Built . | . . . Authchips . | . . . Time . | . . . Total Part Build Rating . | . . . Parts Repaired . | . . . Time . | . . . Parts Recycled . | . . . Recycled Matter . | . . . Retrieved Matter . | . . . Retrieved Components . | . . . Parts Scanalyzed . | . . . Part Schematics Acquired . | . . . Parts Damaged . | . . . Bothacking | -11 -10 -10 ------------ Run | Scr Mat Min Used RIF Installer . | . . . Robots Hacked . | . . . Non-combat . | . . . Combat . | . . . Robot Hacks Applied . | . . . Relay Couplers Released . | . . . Fabnet Peak Effective % . | . . . Robots Rewired . | . . . Allies Hacked . | . . . Hacks Repelled . | . . . Allies | -11 -10 -10 -------- Run | Scr Mat Min Total Allies . | . . . Largest Group . | . . . Highest-Rated Group . | . . . Highest-Rated Ally . | . . . Total Orders . | . . . Ally Attacks . | . . . Total Damage . | . . . Kills . | . . . Allies Corrupted . | . . . Allies Melted . | . . . Intel | -11 -10 -10 ------- Run | Scr Mat Min Robot Analysis Total 5 | . 5 . Derelict Logs Recovered 1 | . . 1 Drone Launches . | . . . Drone Recoveries . | . . . Exploration | -11 -10 -10 ------------- Run | Scr Mat Min Turns Passed 1507 | 68 1195 244 Spaces Moved 588 | 41 466 81 Core 7 | 7 . . Treads 581 | 34 466 81 Legs . | . . . Wheels . | . . . Hover . | . . . Flight . | . . . Fastest Speed 50 | 50 160 240 Average Speed 213 | 141 214 240 Slowest Speed 320 | 160 240 320 Overloaded Moves . | . . . Propulsion Burnouts . | . . . Robots Hopped . | . . . Cave-ins Triggered . | . . . Exploration Rate (%) 34 | 4 79 21 Regions Visited 2 Branch Regions 1 Pre-discovered Areas . | . . . Known Exits Taken . | . . . Unknown Exits Taken 2 | 1 1 . Scrap Searched . | . . . Spaces Dug . | . . . Terrain Destroyed 19 | . 9 10 Melee . | . . . Projectile . | . . . AOE 19 | . 9 10 Terrain Rammed . | . . . Walls Destroyed . | . . . Machines Disabled . | . . . Actions | -11 -10 -10 --------- Run | Scr Mat Min Total 719 | 48 569 102 Wait 35 | . 35 . Move 586 | 40 465 81 Hop . | . . . Pick Up 14 | 2 11 1 Fast Attach 7 | 6 1 . Attach 4 | . 1 3 Detach 1 | . 1 . Swap 7 | . 5 2 Drop 2 | . 2 . Fire 63 | . 48 15 Melee . | . . . Ram . | . . . Kick . | . . . Crush . | . . . Escape Stasis . | . . . Rewire . | . . . Trap . | . . . Miscellaneous . | . . . Route ------- -11/Scrapyard -10/Materials (discovered 4 exits: [*Mat x2] / [*Min x2]) -10/Mines (discovered 1 exit: [*Mat]) History --------- Turn | Location | Event 2 | -11/Scrapyard | Met Revision 17 20 | -11/Scrapyard | Discovered new exit (range 16) 69 | -11/Scrapyard | Entered Materials 301 | -10/Materials | Build established: Mutant 461 | -10/Materials | Discovered new exit (range 8) 540 | -10/Materials | Discovered new exit (range 15) 899 | -10/Materials | Discovered new exit (range 15) 1205 | -10/Materials | Discovered new exit (range 12) 1264 | -10/Materials | Entered Mines 1304 | -10/Mines | Received a Rocket Launcher from a helpful Derelict 1431 | -10/Mines | Learned Materials stockpile data 1456 | -10/Mines | Assembled infested the area 1458 | -10/Mines | Discovered new exit (range 9) 1472 | -10/Mines | Core integrity fell below 50% 1501 | -10/Mines | Core integrity fell below 20% 1508 | -10/Mines | Destroyed by G-47 Trooper with Particle Gun Last Messages --------------- 01486_ Lgt. Treads destroyed. 01488_ K-01 Serf collects debris. 01489_ The unstable cave ceiling collapses. 01489_ U-05 Engineer lays Concrete. 01489_ G-47 Trooper suffers critical hit (Burn). 01490_ The unstable cave ceiling collapses. 01490_ G-47 Trooper overheating. 01491_ U-05 Engineer builds a Wall. 01492_ The unstable cave ceiling collapses. 01494_ G-47 Trooper heat damages Aluminum Leg. 01494_ U-05 Engineer lays Concrete. 01495_ G-47 Trooper heat spikes uncontrollably. 01495_ K-01 Serf collects debris. 01496_ U-05 Engineer builds a Wall. 01497_ The unstable cave ceiling collapses. 01498_ K-01 Serf collects debris. 01502_ The unstable cave ceiling collapses. 01502_ K-01 Serf collects debris. 01502_ Sml. Laser destroyed. 01505_ K-01 Serf collects debris. Map ----- +----------------------------------------------------+ | ???????????????????????????????????????? | | ???????????????????????????????????????? | | ???????????????????????????????????????? | | ???????????????????????????????????????? | | ???????????????????????????????????????? | | ???????????????????????????????????????? | | ???????????????????????????????????????? | | ???????????????????????????????????????? | | ???????????????????????????????????????? | | ???????????????????????????????????????? | | ???????????????????????????????????????? | | ?????????????????????????? ????????????? | | ?????????????????????????? ????????????? | | ?????????????????????????" ????????????? | | ?????????????????????????" ????????????? | | ????????????????????????? ????????????? | | ????????????????????????? #????????????? | | ????????????????????????# #????????????? | | ????????????????????????# #????????????? | | ????????????????????????# ##???????????? | | ????????????????????##### ???????? ##?? | | ???????????????????## ##????? ##? | | ??????????????????## ##??? #? | | ??????????????????# # # ## d< #? | | ??????????????????# ## ss s #? | | ??????????????????# @ k #??????? | | ??????????????????## #g # g ##??????? | | ??????????????????# # # ##???????? | | ??????????????????## # # ##????????? | | ???????????????????### ## ####?????????? | | ???????????????????### ####????????????? | | ???????????????????# #???????????????? | | ???????????????????# ###???????????????? | | ???????????????????# #?????????????????? | | ???????????????##### #?????????????????? | | ???????????????# #?????????????????? | | ???????????????# #####?????????????????? | | ???????????????# #?????????????????????? | | ???????????????# #?????????????????????? | | ???????????????# ##????????????????????? | | ???# ######### ##???????????????????? | | ???# ##??????????????????? | | ???# ###############????? | | ??# ####### ## #????? | | ?????????????## ## ####### ## #????? | | ??????????????## ### #??#### ## ###??? | | ???????????????### #?# #??# #?? | | ?????????????????# ### #??# #?? | | ?????????????????# #??# """ """ #?? | | ?????????????????# #####??# """ """ #?? | +----------------------------------------------------+ Best States ------------- Heat Dissipation 25 Energy Generation 12 Energy Capacity 265 Matter Stores 300 Matter Capacity 300 Sight Range 16 Terrain Scan Density 10 Evasion (%) 40 Recoil Reduction 2 Item Schematics ----------------- None Robot Schematics ------------------ None Fabricated ------------ Nothing Alien Tech Used ----------------- None Achievements -------------- None Challenges ------------ None Game ------ Seed DrainedGuidanceCleaver Manual? 0 Play Time 00:11:04 Cumulative 273.2 hours Start 2022.12.10 @ 19:00:24 End 2022.12.10 @ 19:11:51 Sessions 1 Manual Loads 0 Difficulty Rogue Special Mode None Game No. 386 Rogue 299 Adventurer 87 Explorer 0 Win Type - Total 9 Types 4/0/3/1/1/0/0/0/0 Lore% 78 Gallery% 81 Achievement% 70 Wizard Run 0 Options --------- ASCII 0 Keyboard 1 Movement Numpad Keybinds 0 Fullscreen 1 Font 18/SmallcapsGlow Map View 76x50 Tactical HUD 1 Map Filters NONE Filters NONE Steam 1 RUN: f73c7e58-cb50-4982-a38c-9d83bd88ad4a